Cogmind - Beta 11.1 @@@ ROGUE MODE // 2022.09.02 @ 07:18:17 Player: Heclapar Result: Self-destructed Performance ------------- Evolutions (7) 3500 Regions Visited (13) 2600 Robots Destroyed (47) 235 Value Destroyed (1164) 1164 Prototype IDs (5) 100 Alien Tech Used (0) 0 Bonus (1004) 1004 TOTAL SCORE: 8603 Bonus ------- High Alert Combat Kills 4 Entered DSFs 1000 Cogmind --------- Core Integrity 913/1300 Matter 10/300 Energy 340/340 System Corruption 0% Temperature Cool (0) Movement Core (300) Ox5 Location -3/Testing Parts ------- > --- POWER (2) -------- Particle Reactor > --- PROPULSION (9) --- (None) > --- UTILITY (8) ------ Hacking Suite > --- WEAPON (2) ------- (None) > --- INVENTORY (5) ---- Medium Storage Unit ECM Suite System Shield Advanced Drone Bay (2/2) Peak State ------------ > --- POWER ------------ Improved Deuterium Engine Enhanced Nuclear Core > --- PROPULSION ------- Cesium-ion Thruster Cesium-ion Thruster Surge Thruster Surge Thruster Surge Thruster Field Propulsion Drive > --- UTILITY ---------- Improved Heat Sink Advanced Heat Sink Advanced Weight Redist. System Improved Shock Absorption System Hacking Suite Improved System Shield > --- WEAPON ----------- Power Sword Power Sword > --- INVENTORY -------- Light Angular Momentum Engine Medium Storage Unit High-capacity Battery Improved Particle Charger Shock Bomb Launcher [Rating: 66] Favorites ----------- Power Ion Engine Engine Ion Engine Power Core Light Nuclear Core Reactor Particle Reactor Propulsion Cesium-ion Thruster Treads Light Treads Leg Aluminum Leg Hover Unit Cooled Antigrav System Flight Unit Cesium-ion Thruster Utility Improved Heat Sink Device Improved Heat Sink Storage Large Storage Unit Processor Improved Signal Interpreter Hackware Hacking Suite Weapon Spread Laser Energy Gun Spread Laser Ballistic Gun Assault Rifle Launcher Smartbomb Launcher Slashing Weapon Power Sword Build | -11 -10 -10 -9 -9 -8 -7 -6 -6 -5 -4 -4 -3 -3 ------- Run | Scr Mat Min Mat Min Mat Fac Fac DSF Fac Fac DSF Res Tes Slots Evolved 14 | . . . 2 . 2 2 2 . 2 2 . 2 . Power 1 | . . . . . . 1 . . . . . . . Propulsion 7 | . . . 2 . . 1 1 . 1 1 . 1 . Utility 6 | . . . . . 2 . 1 . 1 1 . 1 . Weapon . | . . . . . . . . . . . . . . Parts Attached 75 | . 6 . 11 3 26 5 2 2 7 3 1 4 5 Power 13 | . . . 2 . 3 3 . . . 1 1 1 2 Engine 6 | . . . 1 . 2 2 . . . . . 1 . Core 6 | . . . 1 . 1 1 . . . 1 1 . 1 Reactor 1 | . . . . . . . . . . . . . 1 Propulsion 19 | . 2 . 4 . 7 1 . . 1 1 . 1 2 Treads 2 | . 2 . . . . . . . . . . . . Leg 1 | . . . . . . . . . . . . . 1 Wheel . | . . . . . . . . . . . . . . Hover 1 | . . . . . . . . . . . . . 1 Flight 15 | . . . 4 . 7 1 . . 1 1 . 1 . Utility 20 | . 2 . 2 . 4 1 2 . 6 1 . 2 . Device 13 | . 1 . 1 . 3 1 1 . 4 1 . 1 . Storage 2 | . 1 . . . . . 1 . . . . . . Processor 1 | . . . . . 1 . . . . . . . . Hackware 4 | . . . 1 . . . . . 2 . . 1 . Protection . | . . . . . . . . . . . . . . Artifact . | . . . . . . . . . . . . . . Weapon 23 | . 2 . 3 3 12 . . 2 . . . . 1 Energy Gun 9 | . 2 . 2 1 4 . . . . . . . . Energy Cannon . | . . . . . . . . . . . . . . Ballistic Gun 6 | . . . . . 6 . . . . . . . . Ballistic Cannon . | . . . . . . . . . . . . . . Launcher 6 | . . . 1 2 2 . . . . . . . 1 Special Weapon . | . . . . . . . . . . . . . . Impact Weapon . | . . . . . . . . . . . . . . Slashing Weapon 2 | . . . . . . . . 2 . . . . . Piercing Weapon . | . . . . . . . . . . . . . . Special Melee Weapon . | . . . . . . . . . . . . . . Unidentified Prototypes 5 | . . . 1 . 1 1 . . . . . . 2 Parts Lost 25 | . 1 . . . 8 . . 1 4 . 5 2 4 Power 2 | . . . . . 1 . . . . . 1 . . Propulsion 13 | . 1 . . . 5 . . . 3 . 3 1 . Utility 8 | . . . . . 1 . . 1 1 . 1 1 3 Weapon 2 | . . . . . 1 . . . . . . . 1 Highest Loss Streak 6 | . 1 . . . 6 . . 1 4 . 5 1 3 To Critical Strikes . | . . . . . . . . . . . . . . Average Slot Usage (%) 86 | . 96 100 96 100 89 96 86 84 84 70 59 19 29 Engine 9 | . 14 14 5 11 6 8 6 6 5 5 4 . . Core 1 | . . . 4 . 2 3 6 6 5 5 3 . 1 Treads 11 | . 23 28 1 . . . . . . . . . . Leg 1 | . 4 . . . . . . . . . . . 3 Flight 14 | . . . 40 44 30 38 33 33 29 19 15 1 . Device 13 | . 10 14 18 11 19 21 20 17 20 18 17 3 3 Storage 6 | . 14 14 1 . . . . . . . . . . Hackware 4 | . . . 2 11 9 7 6 6 11 15 14 13 11 Energy Gun 13 | . 14 28 20 17 6 . . . . . . . . Ballistic Gun 5 | . 13 . . . 8 15 13 8 . . . . . Naked Turns . | . . . . . . . . . . . . . . Heaviest Build 37 | 14 32 32 32 15 19 26 26 26 31 26 26 3 37 Greatest Support 40 | 20 40 40 40 20 23 28 28 28 35 31 31 8 25 Greatest Overweight (x) 2 | . 1 . 1 . 2 . . . . . . . 1 Average Overweight (x) . | . . . . . . . . . . . . . . Largest Inventory Capacity 15 | . 15 15 15 5 5 5 10 5 5 5 5 5 5 Average Capacity 9 | . 12 15 6 5 5 5 5 5 5 5 5 5 5 Most Carried 15 | . 14 14 15 5 5 5 5 5 5 5 5 5 5 Average Carried 8 | . 10 14 5 5 4 3 4 5 5 4 5 4 4 Final Capacity 15 | 8 15 15 5 5 5 5 5 5 5 5 5 5 5 Final Carried 14 | 6 14 14 5 5 5 5 5 5 5 5 5 5 5 Class Distribution -------------------- 51% | Mutant 16% | Scavenger-Sprinter 12% | Sprinter 12% | Hacker-Mutant 7% | Hacker-Sprinter Dominant Class ---------------- Mutant | -10/Materials Mutant | -10/Mines Sprinter | -9/Materials Sprinter | -9/Mines Scavenger-Sprinter | -8/Materials Scavenger-Sprinter | -7/Factory Scavenger-Sprinter | -6/Factory Scavenger-Sprinter | -6/DSF Hacker-Sprinter | -5/Factory Hacker-Sprinter | -4/Factory Hacker-Sprinter | -4/DSF Hacker-Mutant | -3/Research Hacker-Mutant | -3/Testing Resources | -11 -10 -10 -9 -9 -8 -7 -6 -6 -5 -4 -4 -3 -3 ----------- Run | Scr Mat Min Mat Min Mat Fac Fac DSF Fac Fac DSF Res Tes Matter Collected 1009 | 200 177 10 150 37 266 . . 115 . . 54 . . Remotely . | . . . . . . . . . . . . . . Salvage Created 1332 | . 291 18 225 99 574 . . 54 23 . 48 . . Parts 110 | . 27 5 18 13 40 . . 5 2 . . . . Haulers Intercepted 4 | . . . 3 . 1 . . . . . . . . Recyclers Shooed 1 | . . 1 . . . . . . . . . . . Parts Field Recycled . | . . . . . . . . . . . . . . Retrieved Matter . | . . . . . . . . . . . . . . Parts Self-Destructed . | . . . . . . . . . . . . . . Prevented . | . . . . . . . . . . . . . . Kills | -11 -10 -10 -9 -9 -8 -7 -6 -6 -5 -4 -4 -3 -3 ------- Run | Scr Mat Min Mat Min Mat Fac Fac DSF Fac Fac DSF Res Tes Combat Hostiles Destroyed 33 | . 7 . 6 6 13 . . 1 . . . . . Melee 1 | . . . . . . . . 1 . . . . . Guns 21 | . 7 . 3 1 10 . . . . . . . . AOE 11 | . . . 3 5 3 . . . . . . . . Classes Destroyed 11 | . 4 2 1 . 3 . . 1 . . . . . Worker 1 | . . 1 . . . . . . . . . . . Builder 1 | . . . . . 1 . . . . . . . . Tunneler 1 | . . 1 . . . . . . . . . . . Hauler 4 | . . . 3 . 1 . . . . . . . . Operator 2 | . 1 . 1 . . . . . . . . . . Watcher 5 | . 3 . 1 . . . . . 1 . . . . Swarmer 11 | . 3 . 3 3 2 . . . . . . . . Cutter 3 | . . . . . 3 . . . . . . . . Grunt 13 | . 4 . 3 3 3 . . . . . . . . Sentry 5 | . . . . . 5 . . . . . . . . Hunter 1 | . . . . . . . . 1 . . . . . Best Kill Streak 10 | . 4 1 10 3 5 . . 1 1 . . . . Combat Bots Only 6 | . 3 . 6 3 5 . . 1 . . . . . Max Kills in Single Turn 2 | . 1 1 2 2 1 . . 1 1 . . . . Gunslinging . | . . . . . . . . . . . . . . Exploded 2 | . . . 2 2 1 . . . . . . . . Melee 1 | . . . . . . . . 1 . . . . . Uniques/NPCs Destroyed . | . . . . . . . . . . . . . . Combat | -11 -10 -10 -9 -9 -8 -7 -6 -6 -5 -4 -4 -3 -3 -------- Run | Scr Mat Min Mat Min Mat Fac Fac DSF Fac Fac DSF Res Tes Damage Taken 3222 | . 347 . 79 50 922 10 . 106 218 . 481 389 620 Core 1029 | . 60 . 7 23 250 . . 14 22 . 266 299 88 Absorbed by Shields 22 | . . . . . . . . . . . 22 . . Core Remaining (%) 86 | 100 . 76 . 92 54 100 . 98 97 . 76 . . Volleys Fired 109 | . 26 4 15 6 58 . . . . . . . . Largest 2 | . 2 2 2 1 2 . . . . . . . . Hottest 140 | . 130 130 140 65 138 . . . . . . . . Shots Fired 193 | . 52 8 26 6 101 . . . . . . . . Gun 179 | . 52 8 22 1 96 . . . . . . . . Cannon . | . . . . . . . . . . . . . . Launcher 14 | . . . 4 5 5 . . . . . . . . Special . | . . . . . . . . . . . . . . Kinetic 92 | . 44 . . . 48 . . . . . . . . Thermal 87 | . 8 8 22 1 48 . . . . . . . . Explosive 9 | . . . 4 5 . . . . . . . . . Electromagnetic 5 | . . . . . 5 . . . . . . . . Robot Hit Streak 11 | . 9 5 6 4 11 . . . . . . . . Robot Miss Streak 8 | . 7 8 3 5 7 . . . . . . . . Penetration Max . | . . . . . . . . . . . . . . Secondary Targets 1 | . . . . . 1 . . . . . . . . Max Gunslinging Chain 1 | . . . . . 1 . . . . . . . . Shots Hit Robots 128 | . 33 7 21 1 63 . . 1 2 . . . . Core Hits 101 | . 23 8 31 10 27 . . 1 1 . . . . Critical Kills . | . . . . . . . . . . . . . . Critical Parts Destroyed 1 | . . . . . 1 . . . . . . . . Critical Strikes 2 | . . . . . 2 . . . . . . . . Burn 1 | . . . . . 1 . . . . . . . . Destroy 1 | . . . . . 1 . . . . . . . . Melee Attacks 7 | . . . . . . . . 1 3 . 3 . . Impact . | . . . . . . . . . . . . . . Slashing 7 | . . . . . . . . 1 3 . 3 . . Piercing . | . . . . . . . . . . . . . . Sneak Attacks . | . . . . . . . . . . . . . . Combat Hostiles . | . . . . . . . . . . . . . . Follow-up Attacks 1 | . . . . . . . . . 1 . . . . Damage Inflicted 2608 | . 367 89 482 213 1337 . . 46 71 . . 2 1 Guns 1788 | . 367 89 256 3 1073 . . . . . . . . Cannons . | . . . . . . . . . . . . . . Explosions 700 | . . . 226 210 264 . . . . . . . . Melee 117 | . . . . . . . . 46 71 . . . . Ramming 3 | . . . . . . . . . . . . 2 1 Kinetic 843 | . 317 . . . 526 . . . . . . . . Thermal 1026 | . 50 89 256 3 628 . . . . . . . . Explosive 436 | . . . 226 210 . . . . . . . . . Electromagnetic 183 | . . . . . 183 . . . . . . . . Impact . | . . . . . . . . . . . . . . Slashing 117 | . . . . . . . . 46 71 . . . . Piercing . | . . . . . . . . . . . . . . Highest Corruption 5 | . . . . . 2 . . . . . 5 . . Average Corruption 2 | . . . . . 2 . . . . . 5 . . Corruption Purged . | . . . . . . . . . . . . . . Corruption Blocked . | . . . . . . . . . . . . . . Effects 7 | . . . . . 6 . . . . . 1 . . Message Errors 2 | . . . . . 1 . . . . . 1 . . Matter Fused 2 | . . . . . 2 . . . . . . . . Heat Flow Errors 1 | . . . . . 1 . . . . . . . . Energy Discharges 1 | . . . . . 1 . . . . . . . . Data Loss (minor) 1 | . . . . . 1 . . . . . . . . Overload Shots . | . . . . . . . . . . . . . . Overflow Damage . | . . . . . . . . . . . . . . Projectiles . | . . . . . . . . . . . . . . Explosions . | . . . . . . . . . . . . . . Melee . | . . . . . . . . . . . . . . Knockbacks . | . . . . . . . . . . . . . . Impact . | . . . . . . . . . . . . . . Kinetic . | . . . . . . . . . . . . . . Secondary . | . . . . . . . . . . . . . . Self-Inflicted Damage 1 | . . . . . . . . . . . . 1 . Shots . | . . . . . . . . . . . . . . Rammed 2 | . . . . . . . . . . . . 1 1 Targets Rammed 2 | . . . . . . . . . . . . 1 1 Kicked . | . . . . . . . . . . . . . . Crushed . | . . . . . . . . . . . . . . Highest Temperature 205 | . 27 54 188 4 205 . . . . . . . . Average Temperature 46 | . 14 24 68 4 43 . . . . . . . . Received Heat Transfer 330 | . 87 . 12 6 162 6 . 9 9 . . 39 . Siege Activations . | . . . . . . . . . . . . . . Robots Corrupted . | . . . . . . . . . . . . . . Combat Hostiles . | . . . . . . . . . . . . . . Parts Fried . | . . . . . . . . . . . . . . Impact Corruptions . | . . . . . . . . . . . . . . Robots Melted . | . . . . . . . . . . . . . . Combat Hostiles . | . . . . . . . . . . . . . . Parts Melted 4 | . . . . . 4 . . . . . . . . Heat Transferred 1845 | . 70 115 346 5 1309 . . . . . . . . Parts Sabotaged . | . . . . . . . . . . . . . . Parts Stolen . | . . . . . . . . . . . . . . Parts Stripped . | . . . . . . . . . . . . . . Power Chain Reactions 1 | . . . . . 1 . . . . . . . . Missiles Intercepted . | . . . . . . . . . . . . . . Alert | -11 -10 -10 -9 -9 -8 -7 -6 -6 -5 -4 -4 -3 -3 ------- Run | Scr Mat Min Mat Min Mat Fac Fac DSF Fac Fac DSF Res Tes Peak Influence 450 | . 228 5 264 253 450 107 51 48 78 26 33 105 68 Initial 98 | . . . 1 44 98 74 51 38 25 14 18 . 53 Average 86 | . 91 4 98 158 217 86 51 38 27 18 18 48 62 Maximum Alert Level 2 | . 1 . 1 1 2 . . . . . . . . Low Security (%) 83 | . 83 100 67 63 48 100 100 100 100 100 100 100 100 Level 1 15 | . 16 . 32 36 44 . . . . . . . . Level 2 1 | . . . . . 6 . . . . . . . . Level 3 . | . . . . . . . . . . . . . . Level 4 . | . . . . . . . . . . . . . . Level 5 . | . . . . . . . . . . . . . . High Security . | . . . . . . . . . . . . . . Max Security . | . . . . . . . . . . . . . . Squads Dispatched 11 | . 2 . 1 . 5 . . . . . 1 1 1 Investigation 2 | . 1 . . . . . . . . . . . 1 Extermination . | . . . . . . . . . . . . . . Reinforcement 8 | . 1 . 1 . 5 . . . . . 1 . . Assault 1 | . . . . . . . . . . . . 1 . Garrison . | . . . . . . . . . . . . . . Intercept . | . . . . . . . . . . . . . . Searches Triggered . | . . . . . . . . . . . . . . Construction Impeded 1 | . . . . . 1 . . . . . . . . Haulers Reinforced . | . . . . . . . . . . . . . . Active Scanning Responses . | . . . . . . . . . . . . . . Cargo Convoy Interrupts . | . . . . . . . . . . . . . . Stealth | -11 -10 -10 -9 -9 -8 -7 -6 -6 -5 -4 -4 -3 -3 --------- Run | Scr Mat Min Mat Min Mat Fac Fac DSF Fac Fac DSF Res Tes Distress Signals 2 | . . . 1 . . . . . . . . 1 . Communications Jammed . | . . . . . . . . . . . . . . Distress Signals . | . . . . . . . . . . . . . . Times Spotted 109 | . 17 . 9 8 32 1 . 16 7 . 4 9 6 Peak Tracking Total 13 | . 3 . 7 3 10 1 . 13 4 1 4 9 6 Tactical Retreats 4 | . 1 . . . 2 . . . . . . 1 . Traps | -11 -10 -10 -9 -9 -8 -7 -6 -6 -5 -4 -4 -3 -3 ------- Run | Scr Mat Min Mat Min Mat Fac Fac DSF Fac Fac DSF Res Tes Traps Triggered 3 | . 2 . . . . . . . . . 1 . . Indirectly . | . . . . . . . . . . . . . . Trap Hack Attempts . | . . . . . . . . . . . . . . Triggered . | . . . . . . . . . . . . . . Disarmed . | . . . . . . . . . . . . . . Reprogrammed . | . . . . . . . . . . . . . . Reused . | . . . . . . . . . . . . . . Traps Extracted . | . . . . . . . . . . . . . . Installed . | . . . . . . . . . . . . . . Triggered . | . . . . . . . . . . . . . . Machines | -11 -10 -10 -9 -9 -8 -7 -6 -6 -5 -4 -4 -3 -3 ---------- Run | Scr Mat Min Mat Min Mat Fac Fac DSF Fac Fac DSF Res Tes Machines Disabled 5 | . . . 1 1 2 . . . . . 1 . . Max in Single Turn 1 | . . . 1 1 1 . . . . . 1 . . Garrison Access 2 | . . . . . 1 . . . . . . 1 . Machines Sabotaged . | . . . . . . . . . . . . . . Garrisons Compromised . | . . . . . . . . . . . . . . Overloaded Fab Kills . | . . . . . . . . . . . . . . Hacking | -11 -10 -10 -9 -9 -8 -7 -6 -6 -5 -4 -4 -3 -3 --------- Run | Scr Mat Min Mat Min Mat Fac Fac DSF Fac Fac DSF Res Tes Machines Accessed 25 | . 4 . 2 . 7 2 1 . 3 2 . 2 2 Terminals 21 | . 3 . 2 . 6 2 1 . 2 2 . 2 1 Fabricators 2 | . . . . . . . . . 1 . . . 1 Repair Stations 1 | . 1 . . . . . . . . . . . . Recycling Units . | . . . . . . . . . . . . . . Scanalyzers . | . . . . . . . . . . . . . . Garrison Access 1 | . . . . . 1 . . . . . . . . Total Hacks 62 | . 9 . 5 . 15 6 1 . 11 6 . 4 5 Successful 33 | . 4 . 1 . 8 3 1 . 6 6 . 1 3 Failed 29 | . 5 . 4 . 7 3 . . 5 . . 3 2 Catastrophic 5 | . . . . . 2 1 . . 1 . . 1 . Database Lockouts . | . . . . . . . . . . . . . . Manual 45 | . 9 . 5 . 13 6 . . 5 4 . 1 2 Terminals 55 | . 8 . 5 . 14 6 1 . 9 6 . 4 2 Fabricators 5 | . . . . . . . . . 2 . . . 3 Repair Stations 1 | . 1 . . . . . . . . . . . . Recycling Units . | . . . . . . . . . . . . . . Scanalyzers . | . . . . . . . . . . . . . . Garrison Access 1 | . . . . . 1 . . . . . . . . Terminal Hacks 17 | . 2 . 1 . 2 2 1 . 3 5 . 1 . Record 1 | . . . . . . . . . . 1 . . . Open DSF 2 | . . . . . . . 1 . . 1 . . . Level Access Points 4 | . . . . . . 1 . . 1 1 . 1 . Branch Access Points 3 | . 1 . . . . 1 . . . 1 . . . Unreport Threat 6 | . 1 . 1 . 2 . . . 2 . . . . Locate Traps 1 | . . . . . . . . . . 1 . . . Fabricator Hacks 3 | . . . . . . . . . 1 . . . 2 Network Status 1 | . . . . . . . . . . . . . 1 Build 2 | . . . . . . . . . 1 . . . 1 Repair Station Hacks . | . . . . . . . . . . . . . . Recycling Unit Hacks . | . . . . . . . . . . . . . . Scanalyzer . | . . . . . . . . . . . . . . Garrison Access Hacks 1 | . . . . . 1 . . . . . . . . Seal Access 1 | . . . . . 1 . . . . . . . . Unauthorized Hacks 12 | . 2 . . . 5 1 . . 2 1 . . 1 Terminals 11 | . 1 . . . 5 1 . . 2 1 . . 1 Botnet 11 | . 1 . . . 5 1 . . 2 1 . . 1 Fabricators . | . . . . . . . . . . . . . . Repair Stations 1 | . 1 . . . . . . . . . . . . Mechanics 1 | . 1 . . . . . . . . . . . . Recycling Units . | . . . . . . . . . . . . . . Scanalyzers . | . . . . . . . . . . . . . . Garrison Access . | . . . . . . . . . . . . . . Data Cores Recovered . | . . . . . . . . . . . . . . Used . | . . . . . . . . . . . . . . Hacking Detections 19 | . 3 . 1 . 6 2 . . 2 1 . 2 2 Full Trace Events 1 | . . . . . . . . . . . . . 1 Feedback Events 1 | . . . . . . . . . . . . . 1 Hackware Fried 1 | . . . . . . . . . . . . . 1 Feedback Blocked . | . . . . . . . . . . . . . . Robot Schematics Acquired . | . . . . . . . . . . . . . . Robots Built . | . . . . . . . . . . . . . . Authchips . | . . . . . . . . . . . . . . Time 169 | . . . . . . . . . 169 . . . . Total Robot Build Rating . | . . . . . . . . . . . . . . Part Schematics Acquired . | . . . . . . . . . . . . . . Parts Built 2 | . . . . . . . . . . . . . 2 Authchips . | . . . . . . . . . . . . . . Time 46 | . . . . . . . . . . . . . 46 Total Part Build Rating 18 | . . . . . . . . . . . . . 18 Parts Repaired . | . . . . . . . . . . . . . . Time . | . . . . . . . . . . . . . . Parts Recycled . | . . . . . . . . . . . . . . Recycled Matter . | . . . . . . . . . . . . . . Retrieved Matter . | . . . . . . . . . . . . . . Retrieved Components . | . . . . . . . . . . . . . . Parts Scanalyzed . | . . . . . . . . . . . . . . Part Schematics Acquired . | . . . . . . . . . . . . . . Parts Damaged . | . . . . . . . . . . . . . . Bothacking | -11 -10 -10 -9 -9 -8 -7 -6 -6 -5 -4 -4 -3 -3 ------------ Run | Scr Mat Min Mat Min Mat Fac Fac DSF Fac Fac DSF Res Tes Used RIF Installer . | . . . . . . . . . . . . . . Robots Hacked . | . . . . . . . . . . . . . . Non-combat . | . . . . . . . . . . . . . . Combat . | . . . . . . . . . . . . . . Robot Hacks Applied . | . . . . . . . . . . . . . . Relay Couplers Released 2 | . . . . . . . . . . . . 2 . Machine Destruction 2 | . . . . . . . . . . . . 2 . Fabnet Peak Effective % . | . . . . . . . . . . . . . . Robots Rewired . | . . . . . . . . . . . . . . Allies Hacked . | . . . . . . . . . . . . . . Hacks Repelled . | . . . . . . . . . . . . . . Allies | -11 -10 -10 -9 -9 -8 -7 -6 -6 -5 -4 -4 -3 -3 -------- Run | Scr Mat Min Mat Min Mat Fac Fac DSF Fac Fac DSF Res Tes Total Allies 4 | . . 4 . . . . . . . . . . . Largest Group 4 | . . 4 4 . . . . . . . . . . Highest-Rated Group 71 | . . 71 71 . . . . . . . . . . Highest-Rated Ally 31 | . . 31 31 . . . . . . . . . . Total Orders . | . . . . . . . . . . . . . . Ally Attacks . | . . . . . . . . . . . . . . Total Damage . | . . . . . . . . . . . . . . Kills . | . . . . . . . . . . . . . . Allies Corrupted . | . . . . . . . . . . . . . . Allies Melted . | . . . . . . . . . . . . . . Intel | -11 -10 -10 -9 -9 -8 -7 -6 -6 -5 -4 -4 -3 -3 ------- Run | Scr Mat Min Mat Min Mat Fac Fac DSF Fac Fac DSF Res Tes Robot Analysis Total . | . . . . . . . . . . . . . . Derelict Logs Recovered 2 | . . 1 . 1 . . . . . . . . . Drone Launches . | . . . . . . . . . . . . . . Drone Recoveries . | . . . . . . . . . . . . . . Exploration | -11 -10 -10 -9 -9 -8 -7 -6 -6 -5 -4 -4 -3 -3 ------------- Run | Scr Mat Min Mat Min Mat Fac Fac DSF Fac Fac DSF Res Tes Turns Passed 2675 | . 680 571 214 128 436 66 26 32 123 50 47 111 191 Spaces Moved 3380 | 1 373 348 315 335 552 208 83 109 436 149 94 228 149 Core 204 | . . . . . . . . . . . 14 128 62 Treads 647 | . 291 348 8 . . . . . . . . . . Legs 170 | 1 82 . . . . . . . . . . . 87 Wheels . | . . . . . . . . . . . . . . Hover . | . . . . . . . . . . . . . . Flight 2359 | . . . 307 335 552 208 83 109 436 149 80 100 . Fastest Speed 21 | 120 120 160 26 26 26 23 23 23 21 29 29 40 50 Average Speed 59 | 120 151 160 30 26 28 23 23 23 23 29 32 45 117 Slowest Speed 240 | 120 190 160 240 26 195 23 23 23 32 32 50 50 170 Overloaded Moves 8 | . . . . . . . . . . . 8 . . Propulsion Burnouts . | . . . . . . . . . . . . . . Robots Hopped 20 | . . . 1 . 11 1 . . 2 . 2 3 . Cave-ins Triggered . | . . . . . . . . . . . . . . Exploration Rate (%) 35 | 2 65 63 20 64 42 5 3 92 15 5 85 10 20 Regions Visited 13 Branch Regions 3 Pre-discovered Areas . | . . . . . . . . . . . . . . Known Exits Taken 5 | . 1 . . . . 1 1 . 1 1 . . . Unknown Exits Taken 6 | 1 . 1 1 1 1 . . . . . . 1 . Scrap Searched 2 | . . . . 2 . . . . . . . . . Spaces Dug . | . . . . . . . . . . . . . . Terrain Destroyed 66 | . . . 39 23 4 . . . . . . . . Melee . | . . . . . . . . . . . . . . Projectile . | . . . . . . . . . . . . . . AOE 66 | . . . 39 23 4 . . . . . . . . Terrain Rammed . | . . . . . . . . . . . . . . Walls Destroyed . | . . . . . . . . . . . . . . Machines Disabled . | . . . . . . . . . . . . . . Actions | -11 -10 -10 -9 -9 -8 -7 -6 -6 -5 -4 -4 -3 -3 --------- Run | Scr Mat Min Mat Min Mat Fac Fac DSF Fac Fac DSF Res Tes Total 3823 | . 438 354 403 367 735 224 90 113 449 154 104 230 162 Wait 189 | . 14 3 53 24 82 8 1 . . . 4 . . Move 3329 | . 372 347 312 334 530 205 82 108 431 148 89 222 149 Hop 18 | . . . 1 . 10 1 . . 2 . 2 2 . Pick Up 44 | . 14 . 4 . 15 4 1 . 2 1 . . 3 Fast Attach 33 | . 1 . 6 . 9 . 1 2 7 2 . 3 2 Attach 19 | . 2 . 1 . 7 4 1 . . . . 1 3 Detach 4 | . . . . . 1 . 2 . . . . 1 . Swap 23 | . 3 . 4 3 10 1 . . . 1 1 . . Drop 43 | . 6 . 7 . 13 1 2 2 5 2 3 . 2 Fire 109 | . 26 4 15 6 58 . . . . . . . . Melee 6 | . . . . . . . . 1 2 . 3 . . Ram 2 | . . . . . . . . . . . . 1 1 Kick . | . . . . . . . . . . . . . . Crush . | . . . . . . . . . . . . . . Escape Stasis 2 | . . . . . . . . . . . 2 . . Rewire 2 | . . . . . . . . . . . . . 2 Trap . | . . . . . . . . . . . . . . Miscellaneous . | . . . . . . . . . . . . . . Route ------- -11/Scrapyard -10/Materials (discovered 2 exits: *Mat / *Min) -10/Mines (discovered 2 exits: *Mat x2) -9/Materials (discovered 2 exits: [*Min] / Sto) -9/Mines (discovered 2 exits: *Mat / [*Zio]) -8/Materials -7/Factory (discovered 6 exits: *Fac x4 / Low x2) -6/Factory -6/DSF -5/Factory (discovered 4 exits: *Fac x4) -4/Factory (discovered 8 exits: Res x4 / Upp x2 / Arm / DSF) -4/DSF -3/Research (discovered 4 exits: Res x3 / *Tes) -3/Testing History --------- Turn | Location | Event 1 | -11/Scrapyard | Discovered new exit (range 0) 1 | -11/Scrapyard | Entered Materials 303 | -10/Materials | Build established: Mutant 479 | -10/Materials | Discovered new exit (range 13) 490 | -10/Materials | Identified exit to Mines 681 | -10/Materials | Entered Mines 724 | -10/Mines | Discovered new exit (range 15) 803 | -10/Mines | Assisted by bots powering up and referring to "LRC-V3" 971 | -10/Mines | Learned location of 1 exit from Materials 1237 | -10/Mines | Discovered new exit (range 4) 1240 | -10/Mines | Received a Mining Laser from a helpful Derelict 1252 | -10/Mines | Entered Materials 1252 | -9/Materials | Accompanied by 4 allies 1252 | -9/Materials | Evolved 2 slots: Propulsion x2 1253 | -9/Materials | Identified exit to Storage 1407 | -9/Materials | Discovered new exit (range 7) 1466 | -9/Materials | Entered Mines 1510 | -9/Mines | A Derelict revealed a hidden shortcut to a safe place 1521 | -9/Mines | Learned Materials stockpile data 1536 | -9/Mines | Received a Rocket Launcher from a helpful Derelict 1565 | -9/Mines | Build established: Sprinter 1593 | -9/Mines | Discovered new exit (range 6) 1594 | -9/Mines | Entered Materials 1594 | -8/Materials | Evolved 2 slots: Utility x2 1742 | -8/Materials | Lost 6 parts (1p4n1w) 2004 | -8/Materials | Build established: Scavenger-Sprinter 2026 | -8/Materials | Discovered new exit (range 15) 2030 | -8/Materials | Entered Factory 2030 | -7/Factory | Evolved 2 slots: Power x1, Propulsion x1 2056 | -7/Factory | Identified exit to Lower Caves 2056 | -7/Factory | Identified exit to Factory 2096 | -7/Factory | Entered another Factory area 2096 | -6/Factory | Evolved 2 slots: Propulsion x1, Utility x1 2122 | -6/Factory | Identified exit to DSF 2122 | -6/Factory | Entered DSF 2122 | -6/DSF | Encountered a pitched battle between 0b10 and Warlord forces 2138 | -6/DSF | Discovered new exit (range 16) 2144 | -6/DSF | Spotted Striker 2154 | -6/DSF | Entered Factory 2154 | -5/Factory | Evolved 2 slots: Propulsion x1, Utility x1 2176 | -5/Factory | Identified exit to Factory 2276 | -5/Factory | Lost 4 parts (3n1u) 2277 | -5/Factory | Entered another Factory area 2277 | -4/Factory | Evolved 2 slots: Propulsion x1, Utility x1 2307 | -4/Factory | Identified exit to Research 2307 | -4/Factory | Identified exit to Upper Caves 2307 | -4/Factory | Identified exit to Armory 2309 | -4/Factory | Identified exit to DSF 2327 | -4/Factory | Entered DSF 2348 | -4/DSF | Additional patrols routed to DSF 2365 | -4/DSF | Discovered exit to Research (range 15) 2374 | -4/DSF | Entered Research 2374 | -3/Research | Evolved 2 slots: Propulsion x1, Utility x1 2396 | -3/Research | Lost 5 parts (1p3n1u) 2441 | -3/Research | Spotted B-86 Titan 2469 | -3/Research | Identified exit to Research 2481 | -3/Research | Discovered new exit (range 8) 2485 | -3/Research | Entered Testing 2542 | -3/Testing | Fabricated Quantum Reactor? 2598 | -3/Testing | Adv. Hacking Suite fried by hacking feedback 2638 | -3/Testing | Build established: Hacker-Mutant 2649 | -3/Testing | Spotted PL-DGD9OZ2ACC 2676 | -3/Testing | Self-destructed Last Messages --------------- Feedback: Adv. Hacking Suite fried. 02598_ ALERT: Suspicious activity at Fabricator T002. Dispatching Investigation squad. 02610_ K-01 Serf cleans the Focalizer. 02622_ C-55 Analyst calibrates the Focalizer. 02628_ K-01 Serf cleans the Focalizer. 02656_ Attempting to rewire PL-DGD9OZ2ACC. 02656_ PL-DGD9OZ2ACC is dormant, system inaccessible. 02657_ Attempting to rewire PL-DGD9OZ2ACC. 02657_ PL-DGD9OZ2ACC is dormant, system inaccessible. 02662_ PL-DGD9OZ2ACC springs to life. 02668_ Smartbomb Launcher destroyed. 02669_ Adv. Reaction Control System destroyed. 02672_ Acquired Prototype Hover Unit. 02672_ Identified Cld. Antigrav System. 02673_ Cld. Antigrav System severed. 02673_ Slammed into PL-DGD9OZ2ACC. 02674_ PL-DGD9OZ2ACC follow-up attacks with Prototype Slashing Weapon. 02675_ Hacking Suite destroyed. 02675_ Exp. Myomer Leg severed. Map ----- +----------------------------------------------------+ | ???????????????????????????????????????????? | | ???????????????????????????????????????????? | | ????????????????????????????????????????????? | | ?????????????????????????????????????????????? | | #?????????????????????????????????????????????? | | #?????????????????????????????????????????????? | | ########??????????????????????????????????????? | | #??????????????????????????????????????? | | #??????????????????????????????????????? | | """ """ #??????????????????????????????????????? | | """ """ #????????? ???????????????????????????? | | """ """ #???????# ???????????????????????????? | | #???????# ? ?????????????????????????? | | """ """ #???????# ?????????????????????????? | | """ """ #???????# ?????????????????????????? | | """ """ #???????# ?????????????????????????? | | #???????# "" ???????####?????????????? | | #???????# ""F"""??? ????????????? | | ### #???????# """"" ?? ?????????????? | | #?# #???????# ?? ???????????????? | | #?# ######### ?? ?????????????????? | | ###### ######s###????????????????? | | ???# ## u #????????????????? | | ???# ## s #????????????????? | | ???# ss #????????????????? | | ???# ##@s ! #????????????????? | | ???# ##l #????????????????? | | ? ## #????????????????? | | ####+###############"############????????????????? | | ???????????# #???????????????????? | | ???????????# """ "" #???????????????????? | | ???????????# "" "" #???????????????????? | | ???????????# """" """ #???????????????????? | | ???????????# """"""" #???????????????????? | | ???????????# #???????????????????? | | ???????????# #???????????????????? | | ????????????##################???????????????????? | | | | | | | | | | | | | | | | | | | | | | | | | | | +----------------------------------------------------+ Best States ------------- Heat Dissipation 76 Energy Generation 46 Energy Capacity 490 Matter Stores 300 Matter Capacity 300 Sight Range 16 Terrain Scan Density 10 ECM Strength 2 Additional Mass Support 9 Resistance: EX 50 Evasion (%) 74 Recoil Reduction 2 Particle Charging 15 Offensive Hacking 34 Defensive Hacking 12 Item Schematics ----------------- None Robot Schematics ------------------ None Fabricated ------------ Quantum Reactor | x2 | -3/Testing | Preloaded Alien Tech Used ----------------- None Achievements -------------- None Challenges ------------ None Game ------ Seed OmegaActuatorKatana Manual? 0 Play Time 00:47:18 Cumulative 33.5 hours Start 2022.09.02 @ 06:31:22 End 2022.09.02 @ 07:18:17 Sessions 1 Manual Loads 0 Difficulty Rogue Special Mode None Game No. 37 Rogue 37 Adventurer 0 Explorer 0 Win Type - Total 0 Types 0/0/0/0/0/0/0/0/0 Lore% 31 Gallery% 39 Achievement% 33 Wizard Run 0 Options --------- ASCII 0 Keyboard 0 Movement Arrows Keybinds 0 Fullscreen 2 Font 18/X11 Map View 76x50 Tactical HUD 1 Map Filters NONE Filters NONE Steam 1 RUN: 4971a0ec-54e6-4252-b8d0-3b8084ea9ecc